[Event "Fast Chess"]
[Site "ChessKid.com"]
[Date "2020.05.08"]
[Round "3"]
[White "Li, Patrick"]
[Black "Horvath, Alexander"]
[Result "0-1"]
[ECO "C42"]
[WhiteElo "1222"]
[BlackElo "1328"]
[PlyCount "78"]
[EventDate "2020.??.??"]
[TimeControl "300"]
[WhiteClock "0:02:44"]
[BlackClock "0:01:48"]

1. e4 {[%emt 0:00:02]} e5 {[%emt 0:00:01]} 2. Nf3 {[%emt 0:00:01]} Nf6 {
[%emt 0:00:02]} 3. Bc4 {[%emt 0:00:04]} Nxe4 {[%emt 0:00:10]} 4. Bxf7+ {
[%emt 0:00:04]} Kxf7 {[%emt 0:00:03]} 5. Nxe5+ {[%emt 0:00:01]} Ke8 {[%emt 0:
00:03]} 6. Qe2 {[%emt 0:00:01]} Qe7 {[%emt 0:00:07]} 7. Qxe4 {[%emt 0:00:13]}
d6 {[%emt 0:00:01]} 8. O-O {[%emt 0:00:23]} Qxe5 {[%emt 0:00:07]} 9. Qxe5+ {
[%emt 0:00:04]} dxe5 {[%emt 0:00:00]} 10. Re1 {[%emt 0:00:02]} Nc6 {[%emt 0:00:
04]} 11. Nc3 {[%emt 0:00:03]} Bd6 {[%emt 0:00:02]} 12. Nd5 {[%emt 0:00:10]} Be6
{[%emt 0:00:05]} 13. Nc3 {[%emt 0:00:06]} Kd7 {[%emt 0:00:02]} 14. d3 {[%emt 0:
00:04]} Rad8 {[%emt 0:00:06]} 15. Nb5 {[%emt 0:00:05]} Kc8 {[%emt 0:00:03]} 16.
Be3 {[%emt 0:00:07]} Kb8 {[%emt 0:00:06]} 17. Re2 {[%emt 0:00:05]} Bg4 {
[%emt 0:00:08]} 18. Ree1 {[%emt 0:00:03]} Bc8 {[%emt 0:00:10]} 19. Re2 {
[%emt 0:00:06]} Nd4 {[%emt 0:00:04]} 20. Bxd4 {[%emt 0:00:05]} exd4 {[%emt 0:
00:00]} 21. Nxd4 {[%emt 0:00:03]} Rde8 {[%emt 0:00:02]} 22. Rxe8 {[%emt 0:00:
03]} Rxe8 {[%emt 0:00:00]} 23. Nb5 {[%emt 0:00:05]} a6 {[%emt 0:00:08]} 24.
Nxd6 {[%emt 0:00:03]} cxd6 {[%emt 0:00:00]} 25. h3 {[%emt 0:00:04]} Re2 {
[%emt 0:00:02]} 26. Rc1 {[%emt 0:00:06]} Kc7 {[%emt 0:00:08]} 27. f3 {[%emt 0:
00:06]} Kc6 {[%emt 0:00:02]} 28. g3 {[%emt 0:00:19]} Bxh3 {[%emt 0:00:08]} 29.
Rf1 {[%emt 0:00:07]} Bxf1 {[%emt 0:00:02]} 30. Kxf1 {[%emt 0:00:02]} Rxc2 {
[%emt 0:00:01]} 31. Ke1 {[%emt 0:00:02]} Rxb2 {[%emt 0:00:02]} 32. Kd1 {
[%emt 0:00:03]} Rxa2 {[%emt 0:00:01]} 33. Kc1 {[%emt 0:00:00]} Kd5 {[%emt 0:00:
02]} 34. d4 {[%emt 0:00:07]} Kxd4 {[%emt 0:00:01]} 35. f4 {[%emt 0:00:01]} Kc3
{[%emt 0:00:01]} 36. Kd1 {[%emt 0:00:04]} b5 {[%emt 0:00:07]} 37. g4 {[%emt 0:
00:03]} b4 {[%emt 0:00:01]} 38. g5 {[%emt 0:00:04]} Kd3 {[%emt 0:00:01]} 39. f5
{[%emt 0:00:01]} Ra1# {[%emt 0:00:02] KeenOrangeTeeth won by checkmate} 0-1

[Event "Fast Chess"]
[Site "ChessKid.com"]
[Date "2020.05.09"]
[Round "1"]
[White "Li, Tobias"]
[Black "Dai, Lana"]
[Result "1-0"]
[ECO "C50"]
[WhiteElo "1388"]
[BlackElo "1253"]
[Annotator "entfernter Freibauer"]
[PlyCount "143"]
[EventDate "2020.??.??"]
[TimeControl "600"]
[WhiteClock "0:01:39"]
[BlackClock "0:05:43"]

1. e4 {[%emt 0:00:00]} e5 {[%emt 0:00:02]} 2. Nf3 {[%emt 0:00:01]} Nc6 {
[%emt 0:00:01]} 3. Nc3 {[%emt 0:00:02]} Nf6 {[%emt 0:00:01]} 4. Bc4 {[%emt 0:
00:01]} h6 {[%emt 0:00:03]} 5. O-O {[%emt 0:00:01]} Bc5 {[%emt 0:00:02]} 6. h3
{[%emt 0:00:03]} O-O {[%emt 0:00:04]} 7. d3 {[%emt 0:00:01]} a6 {[%emt 0:00:02]
} 8. a3 {[%emt 0:00:01]} d6 {[%emt 0:00:04]} 9. b4 {[%emt 0:00:05]} Bb6 {
[%emt 0:00:03]} 10. Re1 {[%emt 0:00:09]} Nd4 {[%emt 0:00:04]} 11. Nxd4 {
[%emt 0:00:04]} Bxd4 {[%emt 0:00:02]} 12. Bd2 {[%emt 0:00:06]} c5 {[%emt 0:00:
15]} 13. bxc5 {[%emt 0:00:05]} dxc5 {[%emt 0:00:01]} 14. Rb1 {[%emt 0:00:03]}
Bxc3 {[%emt 0:00:02]} 15. Bxc3 {[%emt 0:00:02]} Qd6 {[%emt 0:00:13]} 16. Bd5 {
[%emt 0:00:17]} Nxd5 {[%emt 0:00:02]} 17. exd5 {[%emt 0:00:01]} f6 {[%emt 0:00:
16]} 18. Qf3 {[%emt 0:00:03]} f5 {[%emt 0:00:23]} 19. Bxe5 {[%emt 0:00:11]} Qd7
{[%emt 0:00:24]} 20. Bb2 {[%emt 0:00:04]} f4 {[%emt 0:00:23]} 21. Re4 {[%emt 0:
00:08]} Qxd5 {[%emt 0:00:06]} 22. Rxf4 {[%emt 0:00:08]} Qxf3 {[%emt 0:00:08]}
23. Rxf3 {[%emt 0:00:04]} Rxf3 {[%emt 0:00:02]} 24. gxf3 {[%emt 0:00:01]} Bxh3
{[%emt 0:00:03]} 25. Be5 {[%emt 0:00:12]} b5 {[%emt 0:00:06]} 26. Bd6 {[%emt 0:
00:04]} c4 {[%emt 0:00:14]} 27. dxc4 {[%emt 0:00:03]} bxc4 {[%emt 0:00:01]} 28.
Rb4 {[%emt 0:00:09]} Rd8 {[%emt 0:00:09]} 29. Bg3 {[%emt 0:00:15]} Rd4 {
[%emt 0:00:41]} 30. Be5 {[%emt 0:00:05]} a5 {[%emt 0:00:29]} 31. Bxd4 {[%emt 0:
00:04]} axb4 {[%emt 0:00:01]} 32. axb4 {[%emt 0:00:01]} Kf7 {[%emt 0:00:02]}
33. b5 {[%emt 0:00:02]} Bc8 {[%emt 0:00:05]} 34. b6 {[%emt 0:00:00]} g5 {
[%emt 0:00:07]} 35. Kf1 {[%emt 0:00:02]} Ke6 {[%emt 0:00:12]} 36. Ke1 {[%emt 0:
00:02]} Kd5 {[%emt 0:00:01]} 37. Ba1 {[%emt 0:00:03]} Kc5 {[%emt 0:00:06]} 38.
Kd2 {[%emt 0:00:01]} Kxb6 {[%emt 0:00:08]} 39. Kc3 {[%emt 0:00:01]} Kc5 {
[%emt 0:00:02]} 40. Kd2 {[%emt 0:00:02]} Kb4 {[%emt 0:00:06]} 41. Bc3+ {
[%emt 0:00:04]} Kc5 {[%emt 0:00:01]} 42. Ke3 {[%emt 0:00:04]} Bf5 {[%emt 0:00:
08]} 43. Bg7 {[%emt 0:00:06]} h5 {[%emt 0:00:06]} 44. f4 {[%emt 0:00:01]} gxf4+
$4 {[%emt 0:00:09]} 45. Kxf4 {[%emt 0:00:02]} Bxc2 {[%emt 0:00:02]} 46. Kg5 {
[%emt 0:00:03]} Bd1 {[%emt 0:00:01]} 47. f4 {[%emt 0:00:09]} Kb4 {[%emt 0:00:
06]} 48. f5 {[%emt 0:00:04]} c3 {[%emt 0:00:02]} 49. f6 {[%emt 0:00:08]} c2 {
[%emt 0:00:06]} 50. Bf8+ {[%emt 0:00:05]} Kc4 {[%emt 0:00:05]} 51. Ba3 {
[%emt 0:00:04]} c1=Q+ {[%emt 0:01:18]} 52. Bxc1 {[%emt 0:00:04]} Kd3 {[%emt 0:
00:15]} 53. f7 {[%emt 0:00:03]} Ba4 {[%emt 0:00:07]} 54. f8=Q {[%emt 0:00:04]}
Kc2 {[%emt 0:00:02]} 55. Qf4 {[%emt 0:00:05]} Be8 {[%emt 0:00:06]} 56. Qe4+ {
[%emt 0:00:04]} Kxc1 {[%emt 0:00:03]} 57. Qxe8 {[%emt 0:00:01]} Kd2 {[%emt 0:
00:01]} 58. Kxh5 {[%emt 0:00:02]} Kd3 {[%emt 0:00:02]} 59. Qe5 {[%emt 0:00:02]}
Kd2 {[%emt 0:00:01]} 60. Qe4 {[%emt 0:00:01]} Kd1 {[%emt 0:00:03]} 61. Qe3 {
[%emt 0:00:00]} Kc2 {[%emt 0:00:05]} 62. Qd4 {[%emt 0:00:01]} Kc1 {[%emt 0:00:
03]} 63. Qd3 {[%emt 0:00:01]} Kb2 {[%emt 0:00:03]} 64. Qc4 {[%emt 0:00:02]} Kb1
{[%emt 0:00:04]} 65. Qc3 {[%emt 0:00:06]} Ka2 {[%emt 0:00:03]} 66. Qb4 {
[%emt 0:00:01]} Ka1 {[%emt 0:00:02]} 67. Kg4 {[%emt 0:00:00]} Ka2 {[%emt 0:00:
01]} 68. Kf3 {[%emt 0:00:00]} Ka1 {[%emt 0:00:01]} 69. Ke3 {[%emt 0:00:00]} Ka2
{[%emt 0:00:01]} 70. Kd2 {[%emt 0:00:00]} Ka1 {[%emt 0:00:00]} 71. Kc2 {
[%emt 0:00:01]} Ka2 {[%emt 0:00:00]} 72. Qb2# {[%emt 0:00:00] OnlyHungryKiwi
won by checkmate} 1-0

[Event "Fast Chess"]
[Site "ChessKid.com"]
[Date "2020.05.09"]
[Round "1"]
[White "Li, Patrick"]
[Black "Sasse, Gabriel"]
[Result "0-1"]
[ECO "C50"]
[WhiteElo "1213"]
[BlackElo "1338"]
[Annotator "Fesselung"]
[PlyCount "60"]
[EventDate "2020.??.??"]
[TimeControl "600"]
[WhiteClock "0:08:07"]
[BlackClock "0:08:24"]

1. e4 {[%emt 0:00:02]} e5 {[%emt 0:00:00]} 2. Nf3 {[%emt 0:00:01]} Nc6 {
[%emt 0:00:01]} 3. Nc3 {[%emt 0:00:01]} Bc5 {[%emt 0:00:00]} 4. Bc4 {[%emt 0:
00:01]} h6 {[%emt 0:00:00]} 5. O-O {[%emt 0:00:02]} Nf6 {[%emt 0:00:01]} 6. d3
{[%emt 0:00:01]} Ng4 {[%emt 0:00:02]} 7. h3 {[%emt 0:00:07]} Nxf2 {[%emt 0:00:
01]} 8. Rxf2 {[%emt 0:00:02]} Bxf2+ {[%emt 0:00:01]} 9. Kxf2 {[%emt 0:00:01]}
O-O {[%emt 0:00:01]} 10. Kg1 {[%emt 0:00:01]} Na5 {[%emt 0:00:03]} 11. Nd5 {
[%emt 0:00:02]} c6 {[%emt 0:00:09]} 12. Nc3 {[%emt 0:00:02]} Qb6+ {[%emt 0:00:
02]} 13. Kf1 {[%emt 0:00:03]} Nxc4 {[%emt 0:00:02]} 14. dxc4 {[%emt 0:00:02]}
Qd8 {[%emt 0:00:06]} 15. Nxe5 {[%emt 0:00:02]} Qf6+ {[%emt 0:00:05]} 16. Ke1 {
[%emt 0:00:03]} Qxe5 {[%emt 0:00:02]} 17. Qd3 {[%emt 0:00:07]} Qh2 {[%emt 0:00:
13]} 18. Qf3 {[%emt 0:00:06]} Qg1+ {[%emt 0:00:02]} 19. Ke2 {[%emt 0:00:02]}
Qc5 {[%emt 0:00:04]} 20. Qg4 {[%emt 0:00:04]} d5 {[%emt 0:00:05]} 21. Qg3 {
[%emt 0:00:03]} Qxc4+ {[%emt 0:00:04]} 22. Kd1 {[%emt 0:00:02]} dxe4 {[%emt 0:
00:03]} 23. Bxh6 {[%emt 0:00:04]} Qd4+ {[%emt 0:00:11]} 24. Kc1 {[%emt 0:00:04]
} Qg1+ {[%emt 0:00:03]} 25. Kd2 {[%emt 0:00:02]} Qd4+ {[%emt 0:00:08]} 26. Kc1
{[%emt 0:00:02]} Qf6 {[%emt 0:00:08]} 27. Bg5 {[%emt 0:00:04]} Qg6 {[%emt 0:00:
01]} 28. Nxe4 {[%emt 0:00:11]} f6 {[%emt 0:00:04]} 29. Nxf6+ {[%emt 0:00:08]}
gxf6 {[%emt 0:00:06]} 30. Bxf6 {[%emt 0:00:04]} Qxg3 {[%emt 0:00:06]
LimeFarActor won by resignation} 0-1

[Event "Fast Chess"]
[Site "ChessKid.com"]
[Date "2020.05.09"]
[Round "2"]
[White "Halimi, Dorian"]
[Black "Li, Tobias"]
[Result "1-0"]
[ECO "C55"]
[WhiteElo "1204"]
[BlackElo "1377"]
[Annotator "Grundlinienschwäche"]
[PlyCount "55"]
[EventDate "2020.??.??"]
[TimeControl "600"]
[WhiteClock "0:07:59"]
[BlackClock "0:08:00"]

1. e4 {[%emt 0:00:02]} e5 {[%emt 0:00:02]} 2. Nf3 {[%emt 0:00:01]} Nc6 {
[%emt 0:00:01]} 3. Nc3 {[%emt 0:00:02]} Nf6 {[%emt 0:00:02]} 4. Bc4 {[%emt 0:
00:04]} Bc5 {[%emt 0:00:00]} 5. Ng5 {[%emt 0:00:01]} O-O {[%emt 0:00:02]} 6.
Nxf7 {[%emt 0:00:06]} Rxf7 {[%emt 0:00:01]} 7. Bxf7+ {[%emt 0:00:02]} Kxf7 {
[%emt 0:00:00]} 8. Nd5 {[%emt 0:00:03]} Nxe4 {[%emt 0:00:04]} 9. Qf3+ {[%emt 0:
00:05]} Nf6 {[%emt 0:00:04]} 10. Nxf6 {[%emt 0:00:09]} Qxf6 {[%emt 0:00:04]}
11. Qg3 {[%emt 0:00:08]} Kg8 {[%emt 0:00:07]} 12. O-O {[%emt 0:00:03]} b6 {
[%emt 0:00:02]} 13. d3 {[%emt 0:00:01]} Nd4 {[%emt 0:00:10]} 14. c3 {[%emt 0:
00:08]} Nc6 {[%emt 0:00:04]} 15. Be3 {[%emt 0:00:06]} Bxe3 {[%emt 0:00:11]} 16.
fxe3 {[%emt 0:00:02]} Qd6 {[%emt 0:00:05]} 17. Rad1 {[%emt 0:00:06]} Qe6 {
[%emt 0:00:08]} 18. d4 {[%emt 0:00:02]} exd4 {[%emt 0:00:03]} 19. exd4 {
[%emt 0:00:03]} d5 {[%emt 0:00:03]} 20. Qf3 {[%emt 0:00:05]} Bd7 {[%emt 0:00:
13]} 21. Rde1 {[%emt 0:00:01]} Qd6 {[%emt 0:00:07]} 22. h3 {[%emt 0:00:09]} Re8
{[%emt 0:00:10]} 23. Rxe8+ {[%emt 0:00:06]} Bxe8 {[%emt 0:00:02]} 24. Re1 {
[%emt 0:00:12]} Bd7 {[%emt 0:00:04]} 25. Rf1 {[%emt 0:00:05]} a5 {[%emt 0:00:
06]} 26. Qf7+ {[%emt 0:00:03]} Kh8 {[%emt 0:00:05]} 27. Qf8+ {[%emt 0:00:06]}
Qxf8 {[%emt 0:00:02]} 28. Rxf8# {[%emt 0:00:01] FullMagentaEclipse won by
checkmate} 1-0

[Event "Fast Chess"]
[Site "ChessKid.com"]
[Date "2020.05.09"]
[Round "2"]
[White "Sasse, Gabriel"]
[Black "Dai, Lana"]
[Result "0-1"]
[ECO "C55"]
[WhiteElo "1329"]
[BlackElo "1263"]
[PlyCount "110"]
[EventDate "2020.??.??"]
[TimeControl "600"]
[WhiteClock "0:02:49"]
[BlackClock "0:06:06"]

1. e4 {[%emt 0:00:02]} e5 {[%emt 0:00:02]} 2. Nf3 {[%emt 0:00:00]} Nc6 {
[%emt 0:00:01]} 3. Bc4 {[%emt 0:00:03]} h6 {[%emt 0:00:03]} 4. O-O {[%emt 0:00:
02]} Nf6 {[%emt 0:00:01]} 5. Nc3 {[%emt 0:00:02]} a6 {[%emt 0:00:04]} 6. Nd5 {
[%emt 0:00:01]} Nxd5 {[%emt 0:00:03]} 7. Bxd5 {[%emt 0:00:02]} Bc5 {[%emt 0:00:
04]} 8. Bxc6 {[%emt 0:00:02]} dxc6 {[%emt 0:00:03]} 9. Nxe5 {[%emt 0:00:01]}
Qd6 {[%emt 0:00:14]} 10. Nc4 {[%emt 0:00:07]} Qd4 {[%emt 0:00:18]} 11. d3 {
[%emt 0:00:03]} b5 {[%emt 0:00:05]} 12. Nd2 {[%emt 0:00:08]} Qe5 {[%emt 0:00:
02]} 13. Nf3 {[%emt 0:00:03]} Qf6 {[%emt 0:00:18]} 14. e5 {[%emt 0:00:03]} Qg6
{[%emt 0:00:23]} 15. d4 {[%emt 0:00:06]} Bh3 {[%emt 0:00:06]} 16. Nh4 {[%emt 0:
00:15]} Qe4 {[%emt 0:00:19]} 17. f3 {[%emt 0:00:11]} Qxh4 {[%emt 0:00:07]} 18.
dxc5 {[%emt 0:00:09]} Bd7 {[%emt 0:00:26]} 19. g3 {[%emt 0:00:13]} Qh3 {
[%emt 0:00:11]} 20. Re1 {[%emt 0:00:09]} O-O {[%emt 0:00:13]} 21. Bf4 {[%emt 0:
00:05]} Qf5 {[%emt 0:00:22]} 22. Qc1 {[%emt 0:00:08]} Rfe8 {[%emt 0:00:25]} 23.
g4 {[%emt 0:00:05]} Qe6 {[%emt 0:00:13]} 24. a4 {[%emt 0:00:05]} Qd5 {[%emt 0:
00:09]} 25. Rd1 {[%emt 0:00:09]} Qxf3 {[%emt 0:00:48]} 26. Rxd7 {[%emt 0:00:03]
} Qxg4+ {[%emt 0:00:02]} 27. Kh1 {[%emt 0:00:11]} Qxd7 {[%emt 0:00:16]} 28.
axb5 {[%emt 0:00:10]} Qd5+ {[%emt 0:00:04]} 29. Kg1 {[%emt 0:00:03]} axb5 {
[%emt 0:00:11]} 30. Rxa8 {[%emt 0:00:03]} Rxa8 {[%emt 0:00:02]} 31. Qe1 {
[%emt 0:00:13]} Qxc5+ {[%emt 0:00:08]} 32. Kf1 {[%emt 0:00:07]} Qc4+ {[%emt 0:
00:07]} 33. Kg1 {[%emt 0:00:04]} Qxf4 {[%emt 0:00:05]} 34. e6 {[%emt 0:00:04]}
Qg4+ {[%emt 0:00:02]} 35. Kh1 {[%emt 0:00:02]} Qxe6 {[%emt 0:00:09]} 36. Qd1 {
[%emt 0:00:04]} Qe4+ {[%emt 0:00:04]} 37. Kg1 {[%emt 0:00:01]} Qe3+ {[%emt 0:
00:02]} 38. Kh1 {[%emt 0:00:01]} Re8 {[%emt 0:00:05]} 39. Kg2 {[%emt 0:00:11]}
Qe2+ {[%emt 0:00:17]} 40. Qxe2 {[%emt 0:00:01]} Rxe2+ {[%emt 0:00:02]} 41. Kf3
{[%emt 0:00:01]} Rxc2 {[%emt 0:00:02]} 42. Kg3 {[%emt 0:00:02]} Rxb2 {[%emt 0:
00:01]} 43. h4 {[%emt 0:00:01]} Rb4 {[%emt 0:00:03]} 44. Kh3 {[%emt 0:00:02]}
c5 {[%emt 0:00:01]} 45. h5 {[%emt 0:00:02]} c4 {[%emt 0:00:06]} 46. Kg3 {
[%emt 0:00:02]} c3 {[%emt 0:00:01]} 47. Kf3 {[%emt 0:00:01]} c2 {[%emt 0:00:01]
} 48. Ke3 {[%emt 0:00:01]} c1=R {[%emt 0:00:04]} 49. Kd3 {[%emt 0:00:04]} Rh4 {
[%emt 0:00:02]} 50. Ke3 {[%emt 0:00:01]} Rc3+ {[%emt 0:00:01]} 51. Kd2 {
[%emt 0:00:03]} Rg3 {[%emt 0:00:02]} 52. Ke2 {[%emt 0:00:02]} Rh2+ {[%emt 0:00:
01]} 53. Kf1 {[%emt 0:00:01]} Ra3 {[%emt 0:00:04]} 54. Kg1 {[%emt 0:00:01]} Rc2
{[%emt 0:00:04]} 55. Kf1 {[%emt 0:00:02]} Ra1# {[%emt 0:00:01] TopBrownCave
won by checkmate} 0-1

[Event "Fast Chess"]
[Site "ChessKid.com"]
[Date "2020.05.09"]
[Round "3"]
[White "Halimi, Dorian"]
[Black "Sasse, Gabriel"]
[Result "1-0"]
[ECO "C46"]
[WhiteElo "1215"]
[BlackElo "1319"]
[Annotator "Röntgenangriff"]
[PlyCount "65"]
[EventDate "2020.??.??"]
[TimeControl "600"]
[WhiteClock "0:08:15"]
[BlackClock "0:08:04"]

1. e4 {[%emt 0:00:03]} e5 {[%emt 0:00:00]} 2. Nf3 {[%emt 0:00:04]} Nc6 {
[%emt 0:00:01]} 3. Nc3 {[%emt 0:00:01]} Bc5 {[%emt 0:00:00]} 4. a3 {[%emt 0:00:
04]} h6 {[%emt 0:00:00]} 5. h3 {[%emt 0:00:02]} Nf6 {[%emt 0:00:01]} 6. d3 {
[%emt 0:00:02]} O-O {[%emt 0:00:03]} 7. Nd5 {[%emt 0:00:03]} Nxd5 {[%emt 0:00:
02]} 8. exd5 {[%emt 0:00:01]} Nb8 {[%emt 0:00:01]} 9. Qe2 {[%emt 0:00:07]} Re8
{[%emt 0:00:08]} 10. Be3 {[%emt 0:00:02]} Bxe3 {[%emt 0:00:02]} 11. Qxe3 {
[%emt 0:00:01]} c6 {[%emt 0:00:02]} 12. dxc6 {[%emt 0:00:02]} Nxc6 {[%emt 0:00:
01]} 13. Be2 {[%emt 0:00:03]} Nd4 {[%emt 0:00:07]} 14. O-O {[%emt 0:00:06]}
Nxf3+ {[%emt 0:00:02]} 15. Bxf3 {[%emt 0:00:03]} f5 {[%emt 0:00:11]} 16. Rfe1 {
[%emt 0:00:09]} e4 {[%emt 0:00:03]} 17. dxe4 {[%emt 0:00:03]} fxe4 {[%emt 0:00:
02]} 18. Bxe4 {[%emt 0:00:02]} d5 {[%emt 0:00:02]} 19. Bxd5+ {[%emt 0:00:15]}
Kf8 {[%emt 0:00:04]} 20. Qf3+ {[%emt 0:00:06]} Qf6 {[%emt 0:00:03]} 21. Rxe8+ {
[%emt 0:00:04]} Kxe8 {[%emt 0:00:04]} 22. Re1+ {[%emt 0:00:02]} Kd7 {[%emt 0:
00:03]} 23. Be6+ {[%emt 0:00:06]} Kc7 {[%emt 0:00:04]} 24. Qxf6 {[%emt 0:00:08]
} gxf6 {[%emt 0:00:02]} 25. Bxc8 {[%emt 0:00:02]} Rxc8 {[%emt 0:00:02]} 26. Kh2
{[%emt 0:00:02]} Rd8 {[%emt 0:00:02]} 27. Re2 {[%emt 0:00:03]} Kc6 {[%emt 0:00:
02]} 28. f4 {[%emt 0:00:02]} Kd5 {[%emt 0:00:02]} 29. g4 {[%emt 0:00:01]} Kd4 {
[%emt 0:00:01]} 30. Rd2+ {[%emt 0:00:02]} Ke4 {[%emt 0:00:01]} 31. Rxd8 {
[%emt 0:00:01]} Kxf4 {[%emt 0:00:01]} 32. Rd4+ {[%emt 0:00:02]} Ke3 {[%emt 0:
00:26]} 33. Ra4 {[%emt 0:00:03] FullMagentaEclipse won - game abandoned} 1-0

[Event "Fast Chess"]
[Site "ChessKid.com"]
[Date "2020.05.09"]
[Round "3"]
[White "Li, Tobias"]
[Black "Li, Patrick"]
[Result "1-0"]
[ECO "C57"]
[WhiteElo "1382"]
[BlackElo "1209"]
[PlyCount "23"]
[EventDate "2020.??.??"]
[TimeControl "600"]
[WhiteClock "0:08:38"]
[BlackClock "0:08:28"]

1. e4 {[%emt 0:00:00]} e5 {[%emt 0:00:33]} 2. Nf3 {[%emt 0:00:03]} Nc6 {
[%emt 0:00:00]} 3. Bc4 {[%emt 0:00:06]} Nf6 {[%emt 0:00:03]} 4. Ng5 {[%emt 0:
00:01]} Ng4 {[%emt 0:00:15]} 5. Qxg4 {[%emt 0:00:11]} d5 {[%emt 0:00:02]} 6.
Qg3 {[%emt 0:00:24]} dxc4 {[%emt 0:00:03]} 7. Nc3 {[%emt 0:00:03]} Nd4 {
[%emt 0:00:05]} 8. O-O {[%emt 0:00:18]} Nxc2 {[%emt 0:00:08]} 9. Qxe5+ {
[%emt 0:00:07]} Be7 {[%emt 0:00:05]} 10. Qb5+ {[%emt 0:00:15]} Bd7 {[%emt 0:00:
05]} 11. Qxc4 {[%emt 0:00:03]} Nxa1 {[%emt 0:00:03]} 12. Qxf7# {[%emt 0:00:01]
OnlyHungryKiwi won by checkmate} 1-0

[Event "Fast Chess"]
[Site "ChessKid.com"]
[Date "2020.05.11"]
[Round "1"]
[White "Li, Tobias"]
[Black "Halimi, Dorian"]
[Result "0-1"]
[ECO "C50"]
[WhiteElo "1413"]
[BlackElo "1258"]
[Annotator "Damenfang"]
[PlyCount "120"]
[EventDate "2020.??.??"]
[TimeControl "600"]
[WhiteClock "0:05:13"]
[BlackClock "0:03:55"]

1. e4 {[%emt 0:00:02]} e5 {[%emt 0:00:29]} 2. Nf3 {[%emt 0:00:04]} Nc6 {
[%emt 0:00:01]} 3. Bc4 {[%emt 0:00:02]} h6 {[%emt 0:00:02]} 4. h3 {[%emt 0:00:
04]} a6 {[%emt 0:00:01]} 5. a3 {[%emt 0:00:04]} Nf6 {[%emt 0:00:01]} 6. O-O {
[%emt 0:00:03]} b5 {[%emt 0:00:04]} 7. Ba2 {[%emt 0:00:04]} Nd4 {[%emt 0:00:04]
} 8. Nxe5 {[%emt 0:00:03]} Bd6 {[%emt 0:00:06]} 9. Nf3 {[%emt 0:00:02]} Nxf3+ {
[%emt 0:00:03]} 10. Qxf3 {[%emt 0:00:04]} Qe7 {[%emt 0:00:04]} 11. Nc3 {
[%emt 0:00:05]} O-O {[%emt 0:00:02]} 12. d3 {[%emt 0:00:03]} Qe5 {[%emt 0:00:
01]} 13. Re1 {[%emt 0:00:29]} Qh2+ {[%emt 0:00:08]} 14. Kf1 {[%emt 0:00:02]}
Qh1+ {[%emt 0:00:01]} 15. Ke2 {[%emt 0:00:01]} Qh2 {[%emt 0:00:09]} 16. Be3 {
[%emt 0:00:10]} Be5 {[%emt 0:00:04]} 17. Rh1 {[%emt 0:00:04]} Qxh1 {[%emt 0:00:
24]} 18. Rxh1 {[%emt 0:00:04]} Bxc3 {[%emt 0:00:00]} 19. bxc3 {[%emt 0:00:04]}
d6 {[%emt 0:00:01]} 20. d4 {[%emt 0:00:19]} Bb7 {[%emt 0:00:08]} 21. e5 {
[%emt 0:00:13]} Bxf3+ {[%emt 0:00:07]} 22. Kxf3 {[%emt 0:00:02]} Nd7 {[%emt 0:
00:04]} 23. exd6 {[%emt 0:00:04]} cxd6 {[%emt 0:00:01]} 24. Bd5 {[%emt 0:00:02]
} Rac8 {[%emt 0:00:02]} 25. Bd2 {[%emt 0:00:07]} Rfe8 {[%emt 0:00:05]} 26. Be4
{[%emt 0:00:12]} Re7 {[%emt 0:00:04]} 27. Bf5 {[%emt 0:00:02]} Rce8 {[%emt 0:
00:03]} 28. Kg3 {[%emt 0:00:22]} Nf6 {[%emt 0:00:05]} 29. Bd3 {[%emt 0:00:05]}
Ne4+ {[%emt 0:00:07]} 30. Kf3 {[%emt 0:00:05]} Nxd2+ {[%emt 0:00:02]} 31. Kg3 {
[%emt 0:00:05]} Re1 {[%emt 0:00:10]} 32. Rh2 {[%emt 0:00:02]} Ne4+ {[%emt 0:00:
04]} 33. Kf3 {[%emt 0:00:02]} Nxc3 {[%emt 0:00:04]} 34. h4 {[%emt 0:00:20]} g6
{[%emt 0:00:05]} 35. h5 {[%emt 0:00:05]} g5 {[%emt 0:00:05]} 36. Bf5 {[%emt 0:
00:12]} d5 {[%emt 0:00:07]} 37. Bd7 {[%emt 0:00:02]} R8e7 {[%emt 0:00:06]} 38.
Bc6 {[%emt 0:00:01]} R1e2 {[%emt 0:00:07]} 39. Rh3 {[%emt 0:00:21]} Rxc2 {
[%emt 0:00:04]} 40. Kg4 {[%emt 0:00:10]} Ree2 {[%emt 0:00:06]} 41. Rf3 {
[%emt 0:00:16]} Ne4 {[%emt 0:00:05]} 42. Bxd5 {[%emt 0:00:06]} Rxf2 {[%emt 0:
00:06]} 43. Bxe4 {[%emt 0:00:04]} Rxg2+ {[%emt 0:00:02]} 44. Kh3 {[%emt 0:00:
06]} Rh2+ {[%emt 0:00:08]} 45. Kg4 {[%emt 0:00:03]} Rcg2+ {[%emt 0:00:01]} 46.
Kf5 {[%emt 0:00:02]} g4 {[%emt 0:00:03]} 47. Rf1 {[%emt 0:00:10]} Rxh5+ {
[%emt 0:00:05]} 48. Kf4 {[%emt 0:00:04]} Rgh2 {[%emt 0:00:06]} 49. Kxg4 {
[%emt 0:00:06]} a5 {[%emt 0:00:03]} 50. Bf3 {[%emt 0:00:05]} R5h4+ {[%emt 0:00:
09]} 51. Kg3 {[%emt 0:00:04]} R2h3+ {[%emt 0:00:07]} 52. Kg2 {[%emt 0:00:02]}
b4 {[%emt 0:00:03]} 53. axb4 {[%emt 0:00:05]} axb4 {[%emt 0:00:02]} 54. Bg4 {
[%emt 0:00:05]} Rh2+ {[%emt 0:00:04]} 55. Kg3 {[%emt 0:00:01]} b3 {[%emt 0:00:
01]} 56. Bf5 {[%emt 0:00:05]} b2 {[%emt 0:00:04]} 57. d5 {[%emt 0:00:04]} Kf8 {
[%emt 0:00:02]} 58. d6 {[%emt 0:00:03]} Rh5 {[%emt 0:00:01]} 59. d7 {[%emt 0:
00:02]} Rd2 {[%emt 0:00:01]} 60. Rb1 {[%emt 0:00:06]} Rxf5 {[%emt 0:00:03]
FullMagentaEclipse won by resignation} 0-1